Posting Date,Expenditure Area,Supplier Name,Net Amount,Expense Type,Reason for Expense 
27-Sep-18,Culture & Environment Services,484 Office Manager,95.00,Equipment - Purchase General,Second Hand Desk - Main Office - Cemetery
21-Sep-18,Culture & Environment Services,Aldi 776 104,3.41,Materials and Supplies - Miscellaneous,"Tea, coffee for meetings / training"
03-Sep-18,Culture & Environment Services,Aldi 89 776,23.40,Other Minor Expenses,volunteer refreshments
03-Sep-18,Culture & Environment Services,Aldi 89 776,33.65,Other Minor Expenses,volunteer refreshments
19-Sep-18,Culture & Environment Services,Allison & Stiven,490.36,Clothing & Uniform - Purchase,Uniform for Landscape staff
13-Jun-18,Culture & Environment Services,Amazon Eu Amazon.Co.Uk,39.25,Materials and Supplies - Miscellaneous,Amazon � H&S Training DVDS X 3
28-Jun-18,Culture & Environment Services,Amazon UK Marketplace,43.09,Equipment - Purchase General,A Boards
29-Jun-18,Culture & Environment Services,Amazon UK Marketplace,161.53,Equipment - Purchase General,Security Wands - Metal Detection
02-Jul-18,Culture & Environment Services,Amazon UK Marketplace,16.66,Equipment - Purchase General,Wall brackets - 2018 Christmas Party Prep
04-Jul-18,Culture & Environment Services,Amazon UK Marketplace,45.00,Equipment - Purchase General,Specialist Batteries - Events Equip
22-May-18,Culture & Environment Services,Amazon UK Marketplace,400.79,Fixtures & Fittings,Sound Desk interface and connections
28-Jun-18,Culture & Environment Services,Amazon UK Marketplace,291.66,Fixtures & Fittings,Tension posts and barrier - Crowd Control
23-Jul-18,Culture & Environment Services,Amazon UK Marketplace,45.83,Fixtures & Fittings,Replacement door furniture
23-Jul-18,Culture & Environment Services,Amazon UK Marketplace,139.98,Fixtures & Fittings,Table Centre Fixtures - Christmas Parties 2018 Prep
07-May-18,Culture & Environment Services,Amazon UK Marketplace,21.65,Materials and Supplies - Miscellaneous,Padlock x 2 purchase for Holywells Park after break-in
26-Sep-18,Culture & Environment Services,Amazon.Co.Uk,52.48,Equipment - Purchase General,Purchase of Netgear 8-Port Gigabit for Theatre WiFi
21-Sep-18,Culture & Environment Services,Amazon.Co.Uk,9.98,Materials and Supplies - Miscellaneous,Reception equipment
24-Sep-18,Culture & Environment Services,Amazon.Co.Uk,20.83,Materials and Supplies - Miscellaneous,Book on Trees - Christchurch Hub
05-Sep-18,Culture & Environment Services,Amazon.Co.Uk,29.47,Stationery,4 x packets of lamination pouches
06-Sep-18,Culture & Environment Services,Amazon.Co.Uk,4.92,Stationery,Drywipe markers and board wipe for Holywells
17-Sep-18,Culture & Environment Services,Amzn Mktp Uk,11.17,Cleaning Supplies,Radar keys
14-Sep-18,Culture & Environment Services,Amzn Mktp Uk,65.72,Computer Consumables and other Minor IT costs,keyboards for staff DSE issues
17-Aug-18,Culture & Environment Services,Amzn Mktp Uk,25.39,Equipment - Purchase General,Led bulbs multipack
07-Sep-18,Culture & Environment Services,Amzn Mktp Uk,18.25,Equipment - Purchase General,Ink Cartridges for ATI printer
10-Sep-18,Culture & Environment Services,Amzn Mktp Uk,7.49,Equipment - Purchase General,Phone Case - New Work Mobile - Stonemasons
19-Sep-18,Culture & Environment Services,Amzn Mktp Uk,89.85,Equipment - Purchase General,Replacement flasks
20-Sep-18,Culture & Environment Services,Amzn Mktp Uk,119.98,General Transport Running Expenses,2x tablets
25-Sep-18,Culture & Environment Services,Amzn Mktp Uk,27.98,General Transport Running Expenses,no smoking stickers for Fleet
28-Sep-18,Culture & Environment Services,Amzn Mktp Uk,116.65,General Transport Running Expenses,2x android tablets
18-Sep-18,Culture & Environment Services,Amzn Mktp Uk,16.33,Materials and Supplies - Miscellaneous,Grabbers for Sharps etc
06-Sep-18,Culture & Environment Services,Amzn Mktp Uk,129.16,Project Costs,Connect Four replacement which had broken.
14-Sep-18,Culture & Environment Services,Amzn Mktp UK Amazon.Co.Uk,25.73,Equipment - Purchase General,Wireless keyboard for chapel
21-Sep-18,Culture & Environment Services,Anchor Safety Llp,76.30,Equipment - Purchase General,Safety Shoes - Custom Wide Fit 
07-Sep-18,Culture & Environment Services,Angler Fisher,50.82,Materials and Supplies - Miscellaneous,To remove litter form the ponds
18-Sep-18,Culture & Environment Services,Anglia Tool Centre,699.93,Equipment - Purchase General,Play area maintenance tools
25-May-18,Culture & Environment Services,Argos Ltd,83.32,Equipment - Purchase General,Internet Wi-Fi router � Back stage and lighting box
10-Sep-18,Culture & Environment Services,Asda Petrol 4278,62.53,General Transport Running Expenses,Diesel fuel for GV12 SWJ
24-Sep-18,Culture & Environment Services,Asda Petrol 4278,62.51,General Transport Running Expenses,diesel fuel for GV12 SWJ
26-Sep-18,Culture & Environment Services,Asda Petrol 4278,5.29,Materials and Supplies - Miscellaneous,can petrol for machinery
28-Sep-18,Culture & Environment Services,Asda Petrol 4278,11.48,Materials and Supplies - Miscellaneous,petrol for machinery
25-May-18,Culture & Environment Services,B & M Retail,16.68,Equipment - Purchase General,Storage containers � archive
17-Sep-18,Culture & Environment Services,B & M Retail,8.32,Equipment - Purchase General,Air freshners and batteries
24-Sep-18,Culture & Environment Services,B & M Retail,9.15,Equipment - Purchase General,Bulbs 
24-Sep-18,Culture & Environment Services,B & M Retail,7.48,Equipment - Purchase General,Gloves and screwdriver
04-Sep-18,Culture & Environment Services,B & M Retail,1.82,Goods for Resale - Catering/Beverages,Milk
25-Sep-18,Culture & Environment Services,B & M Retail,2.99,Postage Costs,Postage
18-Sep-18,Culture & Environment Services,B & M Retail,0.83,Stationery,Paper clips
19-Sep-18,Culture & Environment Services,B & Q 1277,131.45,Miscellaneous Stock  - Purchases,Cement/Tarpaulin - THE DELL - Landscape Team
14-Sep-18,Culture & Environment Services,B & Q 1315,7.35,Equipment - Purchase General,Cahin Padlock To prevent bin being fly tipped
17-Sep-18,Culture & Environment Services,B & Q 1315,7.68,Equipment - Purchase General,Sports tape
19-Sep-18,Culture & Environment Services,B & Q 1315,10.83,Equipment - Purchase General,Storage box and tarp for float fit equipment.
11-Sep-18,Culture & Environment Services,B & Q 1315,39.75,Materials and Supplies - Miscellaneous,x4 5M Ratchet - Chantry Hub
27-Sep-18,Culture & Environment Services,B & Q 1315,63.58,Materials and Supplies - Miscellaneous,"Weed control, fabric stap - Chantry Hub"
03-Sep-18,Culture & Environment Services,B & Q 1315,12.27,Miscellaneous Stock  - Purchases,Rapid Cement & bucket - Tacolneston - Landscape Team
07-Sep-18,Culture & Environment Services,B & Q 1315,1.58,Miscellaneous Stock  - Purchases,Sharp Sand - Crown Street - Landscape Team
17-Sep-18,Culture & Environment Services,B & Q 1315,89.48,Miscellaneous Stock  - Purchases,Materials for Poppy display at CCP
19-Sep-18,Culture & Environment Services,B & Q 1315,11.42,Miscellaneous Stock  - Purchases,Block Paving - Maryon Road - Landscape Team
20-Sep-18,Culture & Environment Services,B & Q 1315,4.98,Miscellaneous Stock  - Purchases,Wood Saw - Landscape Team
24-Sep-18,Culture & Environment Services,B & Q 1315,2.08,Miscellaneous Stock  - Purchases,Socket Adapter - Landscape Team
24-Sep-18,Culture & Environment Services,B & Q 1315,29.92,Miscellaneous Stock  - Purchases,Spray paint for fencing - Landscape Team
06-Sep-18,Culture & Environment Services,Babergh District C,-116.00,Capital - Contracts,reversal of plan app paid twice_online portal etc
10-Sep-18,Culture & Environment Services,Babergh District C,116.00,Capital - Contracts,Planning Portal Payment - Application 
04-Sep-18,Culture & Environment Services,Bag Agg Ltd,16.83,Miscellaneous Stock  - Purchases,Ballast - Crown Street - Landscape Team
12-Sep-18,Culture & Environment Services,Bag Agg Ltd,19.25,Miscellaneous Stock  - Purchases,Type 1 - The Dales - Landscape Team
13-Sep-18,Culture & Environment Services,Bag Agg Ltd,15.75,Miscellaneous Stock  - Purchases,Type 1 - The Dales - Landscape Team
13-Sep-18,Culture & Environment Services,Bag Agg Ltd,15.75,Miscellaneous Stock  - Purchases,Type 1 - The Dales - Landscape Team
14-Sep-18,Culture & Environment Services,Bag Agg Ltd,23.88,Miscellaneous Stock  - Purchases,Ballast - The Dales - Landscape Team
17-Sep-18,Culture & Environment Services,Bag Agg Ltd,24.05,Miscellaneous Stock  - Purchases,Ballast - The Dales - Landscape Team
27-Sep-18,Culture & Environment Services,Bag Agg Ltd,48.10,Miscellaneous Stock  - Purchases,Ballast - ALTON WATERS - Landscape Team
13-Sep-18,Culture & Environment Services,Banner Group Ltd,123.68,Equipment - Purchase General,Notice Boards - Refurb
29-Aug-18,Culture & Environment Services,Banner Group Ltd,55.67,Stationery,stationary
03-Sep-18,Culture & Environment Services,Banner Group Ltd,-41.75,Stationery,stationary
05-Sep-18,Culture & Environment Services,Banner Group Ltd,39.90,Stationery,Laminating Pouches
05-Sep-18,Culture & Environment Services,Banner Group Ltd,28.56,Stationery,stationery order
17-Sep-18,Culture & Environment Services,Banner Group Ltd,2.33,Stationery,Stationery - Cems Office
25-Sep-18,Culture & Environment Services,Banner Group Ltd,28.48,Stationery,stationary
20-Jun-18,Culture & Environment Services,Bartram Mowers Limited,15.42,Materials and Supplies - Miscellaneous,Purchase of chainsaw oil for Wildlife Rangers
19-Sep-18,Culture & Environment Services,Bolton Stores,6.61,Materials and Supplies - Miscellaneous,coffee to RDVC education room
19-Sep-18,Culture & Environment Services,Bolton Stores,5.01,Materials and Supplies - Miscellaneous,Items for hire for RDVC meeting room
01-Jun-18,Culture & Environment Services,Booker Limited Ipswich,28.72,Materials and Supplies - Miscellaneous,Arbs equipment
21-Sep-18,Culture & Environment Services,Broxap Ltd,224.30,Materials and Supplies - Miscellaneous,Safety Goal nets and safety hooks
06-Sep-18,Culture & Environment Services,Bunzl,69.92,Cleaning Supplies,Cleaning supplies
19-Sep-18,Culture & Environment Services,Bunzl,23.74,Cleaning Supplies,Cleaning supplies
21-Sep-18,Culture & Environment Services,Bunzl,112.46,Cleaning Supplies,Cleaning equipment
04-Sep-18,Culture & Environment Services,Bunzl,66.03,Training Expenses,cleaning supplies
20-Sep-18,Culture & Environment Services,Bypass Nurseries,5.38,Materials and Supplies - Miscellaneous,killer
18-Sep-18,Culture & Environment Services,Caffe Nero - 101,5.71,Subsistence Expenses,staff review meeting
21-Sep-18,Culture & Environment Services,Caffe Nero - 101,4.46,Subsistence Expenses,external meeting with SPILL marketing manager
26-Sep-18,Culture & Environment Services,Caffe Nero - 101,4.21,Subsistence Expenses,external meeting new wolsey ops manager
21-Sep-18,Culture & Environment Services,Chipsaway,165.00,Insurance Premiums - Supplies and Services,F6135 - Fast Track Claim - TP vehicle repair
17-Sep-18,Culture & Environment Services,Cobblers And Keys Ltd,9.17,Materials and Supplies - Miscellaneous,Keys cut for WSC - Christchurch Hub
20-Sep-18,Culture & Environment Services,Collier&catchpole,82.80,Equipment - Purchase General,Masonry Supplies - Stonemasons - Cement Etc
04-Sep-18,Culture & Environment Services,Collier&catchpole,46.50,Miscellaneous Stock  - Purchases,Edging Kerbs - Crown Street - Landscape Team
21-Sep-18,Culture & Environment Services,Collier&catchpole,21.00,Miscellaneous Stock  - Purchases,Kerbing - The Dales - Landscape Team
14-Sep-18,Culture & Environment Services,Cool Beanz,3.42,Other Minor Expenses,Meeting Refreshments
14-Sep-18,Culture & Environment Services,Cool Beanz,4.17,Other Minor Expenses,Meeting Refreshments
02-Aug-18,Culture & Environment Services,Costa Coffee,3.50,Other Minor Expenses,Meeting - Guest Coffee
09-Jul-18,Culture & Environment Services,Cpc,202.89,Equipment - Purchase General,PA Cabling and connections
13-Sep-18,Culture & Environment Services,Cpw Locksmiths And Securi,75.00,Equipment - Purchase General,Lock Replace - Old Cemetery
12-Sep-18,Culture & Environment Services,Cpw Locksmiths And Securi,12.00,Materials and Supplies - Miscellaneous,key cutting for bin stores
06-Sep-18,Culture & Environment Services,Cs-Catering-Eq,630.00,Equipment - Purchase General,Fridge
24-Sep-18,Culture & Environment Services,Culpitt Ltd,13.04,Goods for Resale - Catering/Beverages,Xmas party items
20-Aug-18,Culture & Environment Services,Currys Online,66.66,Equipment - Purchase General,Plug in stereo for meetings and events
12-Sep-18,Culture & Environment Services,Dvla Dup Reg Doc,20.83,General Transport Running Expenses,replacement logbook for AY58 DDO
07-Sep-18,Culture & Environment Services,Dvla Vehicle Tax,210.42,General Transport Running Expenses,vehicle tax av61 rhu
10-Sep-18,Culture & Environment Services,Dvla Vehicle Tax,543.75,General Transport Running Expenses,vehicle tax for AE62 ABU
10-Sep-18,Culture & Environment Services,Dvla Vehicle Tax,210.42,General Transport Running Expenses,Vehicle Tax for AV60 HHL
11-Sep-18,Culture & Environment Services,Dvla Vehicle Tax,210.42,General Transport Running Expenses,vehicle tax for AE64 SNF
11-Sep-18,Culture & Environment Services,Dvla Vehicle Tax,210.42,General Transport Running Expenses,VEHICLE TAX FOR AE64 SNK
11-Sep-18,Culture & Environment Services,Dvla Vehicle Tax,210.42,General Transport Running Expenses,VEHICLE TAX FOR AE64 SNN
12-Sep-18,Culture & Environment Services,Dvla Vehicle Tax,210.42,General Transport Running Expenses,vehicle tax for AE64 SNJ
13-Sep-18,Culture & Environment Services,Dvla Vehicle Tax,210.42,General Transport Running Expenses,vehicle tax for AE64 SNV
17-Sep-18,Culture & Environment Services,Dvla Vehicle Tax,210.42,General Transport Running Expenses,Vehicle tax for AE64 SNU
18-Sep-18,Culture & Environment Services,Dvla Vehicle Tax,210.42,General Transport Running Expenses,Vehicle Tax for AE64 SNZ
07-Sep-18,Culture & Environment Services,Dvla Vehicle Tax,210.42,Parks Vehicle Costs,Vehicle tax for BK58 EOH
10-Sep-18,Culture & Environment Services,Dvla Vehicle Tax,210.42,Parks Vehicle Costs,Vehicle Tax for BK58 ELW
14-Sep-18,Culture & Environment Services,Dvla Vehicle Tax,210.42,Parks Vehicle Costs,Vehicle Tax for BK58 EUY
13-Jun-18,Culture & Environment Services,Elmers Hardware,109.00,Materials and Supplies - Miscellaneous,Tools and Eqip for Wildlife Rangers
24-Sep-18,Culture & Environment Services,Elmers Hardware,38.33,Materials and Supplies - Miscellaneous,Grass seed - PURCHASED FOR BM - Christchurch Hub
12-Sep-18,Culture & Environment Services,Elmers Hardware,44.97,Miscellaneous Stock  - Purchases,x2 Builders Line x2 digging fork - Tools for Landscape Team
28-Sep-18,Culture & Environment Services,Fcc Recycling,29.17,Equipment - Purchase General,Disposing of two freezers
18-Sep-18,Culture & Environment Services,Gopak Ltd,96.88,Equipment - Purchase General,Three trestle tables.
18-Sep-18,Culture & Environment Services,Gopak Ltd,193.73,Equipment - Purchase General,Three trestle tables.
27-Sep-18,Culture & Environment Services,Hadleigh Pool And Leis,325.00,Training/Courses Running Costs,Training Request 9Trainer Assessors Course
26-Sep-18,Culture & Environment Services,Halfords 0883,35.99,Equipment - Purchase General,tool purchase
05-Sep-18,Culture & Environment Services,Harbro Supplies Ltd,710.29,Goods for Resale - Bereavement,"Gold leaf, paints & various items for Masonry team"
12-Sep-18,Culture & Environment Services,Helloprint,528.95,Goods for Resale - Catering/Beverages,Oktoberfest Glasses
24-Sep-18,Culture & Environment Services,Hg Gladwell & Sons,44.83,Materials and Supplies - Miscellaneous,Duck food for CCP
23-Jul-18,Culture & Environment Services,Horticultural Sppls Ltd,85.60,Materials and Supplies - Miscellaneous,Roundup purchase for JKW treatment
17-Sep-18,Culture & Environment Services,Horticultural Sppls Ltd,171.20,Materials and Supplies - Miscellaneous,Roundup Biactive 10L - KNOTWEED - Holywells Hub
26-Sep-18,Culture & Environment Services,Horticultural Sppls Ltd,70.28,Materials and Supplies - Miscellaneous,Grass seeds/long handle fork - Chantry Hub
07-Sep-18,Culture & Environment Services,Indespension,3.50,Miscellaneous Stock  - Purchases,Number plate clips for digger - Landscape Team
05-Sep-18,Culture & Environment Services,Industrial Powder And,22.05,Equipment - Purchase General,Paper suits for weed killing
26-Sep-18,Culture & Environment Services,Ipswich Arts & Enterta,5.00,Other Minor Expenses,Voucher exchange
25-Sep-18,Culture & Environment Services,Ipswich Pa Centre,94.98,Equipment - Purchase General,Three head mics. top section only.
27-Sep-18,Culture & Environment Services,Itunes.Com/Bill,5.83,Other Minor Expenses,TIC playlist music download
27-Sep-18,Culture & Environment Services,Itunes.Com/Bill,7.49,Other Minor Expenses,TIC playlist music download
27-Sep-18,Culture & Environment Services,Itunes.Com/Bill,8.33,Other Minor Expenses,TIC playlist music download
27-Sep-18,Culture & Environment Services,Itunes.Com/Bill,8.33,Other Minor Expenses,TIC playlist music download
27-Sep-18,Culture & Environment Services,Itunes.Com/Bill,8.33,Other Minor Expenses,TIC playlist music download
27-Sep-18,Culture & Environment Services,Itunes.Com/Bill,9.99,Other Minor Expenses,TIC playlist music download
28-Sep-18,Culture & Environment Services,Itunes.Com/Bill,8.33,Other Minor Expenses,TIC playlist music download
22-Aug-18,Culture & Environment Services,Jencare,37.50,Materials and Supplies - Miscellaneous,Purchase of battery for GSCC linemarker
27-Sep-18,Culture & Environment Services,Johnson Supermarket,2.21,Miscellaneous Functions & Events,Refreshments for meeting Wild Ipswich Partners
25-Sep-18,Culture & Environment Services,Katies Garden,588.38,Miscellaneous Stock  - Purchases,Crown Bulbs
06-Sep-18,Culture & Environment Services,Kent Blaxill And C,109.00,Equipment - Purchase General,Sadolin x 2 - Cemetery Seats
17-Sep-18,Culture & Environment Services,Kfc,20.28,Other Minor Expenses,Staff Refreshments
18-May-18,Culture & Environment Services,Kings,16.46,Materials and Supplies - Miscellaneous,Kings � Keys cut for Holywells Park after break-in
17-Sep-18,Culture & Environment Services,Kings,8.33,Materials and Supplies - Miscellaneous,Mortice Key - CEMETERIES
21-Sep-18,Culture & Environment Services,Lakeland Limited,19.98,Equipment - Purchase General,slicers
28-Sep-18,Culture & Environment Services,Lakeland Limited,12.96,Goods for Resale - Catering/Beverages,Items for Xmas Parties
14-Sep-18,Culture & Environment Services,Leisureteq,142.55,Equipment - Purchase General,Replacement bits for pool - broom test bottles - bolts etc
17-Sep-18,Culture & Environment Services,Leisureteq,50.00,Equipment - Purchase General,3 x 12mm lane rope bolts
24-Sep-18,Culture & Environment Services,Librex Educational,25.50,Stationery,Hymn Book covers
11-Sep-18,Culture & Environment Services,Lumberjacks,32.82,Development & Maintenance of Natural Areas,Sleepers for bench Dales OS
26-Jun-18,Culture & Environment Services,Lumberjacks,35.28,Materials and Supplies - Miscellaneous,Tree Stakes and Ties. Receipt not found.
07-Jun-18,Culture & Environment Services,Lyric Hammersmith,11.42,Training Expenses,Lunch � Leading Learning
21-Aug-18,Culture & Environment Services,Machine Mart Ltd,9.98,Clothing & Uniform - Purchase,equipment for arb team
27-Aug-18,Culture & Environment Services,Machine Mart Ltd,18.99,Equipment - Purchase General,Padlocks - Waterfront
24-Sep-18,Culture & Environment Services,Machine Mart Ltd,17.99,Equipment - Purchase General,Etcher to mark tools with for play area inspector
03-Sep-18,Culture & Environment Services,Machine Mart Ltd,52.14,Miscellaneous Stock  - Purchases,"Pliers,cutt discs & various tools - Landscape Team"
06-Aug-18,Culture & Environment Services,Machine Mart Web,84.99,Materials and Supplies - Miscellaneous,Vice for Arbs
24-Sep-18,Culture & Environment Services,Machine Mart Web,27.99,Premises Costs - Miscellaneous,extension cable for the market
25-Jun-18,Culture & Environment Services,Makro Self Service Ipswic,141.62,Goods for Resale - Catering/Beverages,Additional Stock
27-Aug-18,Culture & Environment Services,Makro Self Service Ipswic,137.70,Goods for Resale - Catering/Beverages,Additional Stock
03-Sep-18,Culture & Environment Services,Makro Self Service Ipswic,67.92,Goods for Resale - Catering/Beverages,"Tonic, Lemons etc"
03-Sep-18,Culture & Environment Services,Makro Self Service Ipswic,20.15,Goods for Resale - Catering/Beverages,"Tonic, Lemons etc"
03-Sep-18,Culture & Environment Services,Makro Self Service Ipswic,19.98,Goods for Resale - Catering/Beverages,"Tonic, Lemons etc"
20-Sep-18,Culture & Environment Services,Makro Self Service Ipswic,59.94,Goods for Resale - Catering/Beverages,Crisps for conference ect
20-Sep-18,Culture & Environment Services,Makro Self Service Ipswic,69.07,Goods for Resale - Catering/Beverages,Crisps for conference ect
25-May-18,Culture & Environment Services,Maplin Ipswich Ip4,4.65,Equipment - Purchase General,IT Connection for router
21-Sep-18,Culture & Environment Services,Mobile Mini UK Limited,78.00,Equipment Hire,Hire of container for equipment storage.
17-Sep-18,Culture & Environment Services,Morplan Ltd,29.75,Materials and Supplies - Miscellaneous,Duck Food bags
11-Sep-18,Culture & Environment Services,Office Monster,16.22,Equipment - Purchase General,stationary
02-Jul-18,Culture & Environment Services,Paypal,205.34,Clothing & Uniform - Purchase,Online Uniform - Black Shirts FOH
06-Sep-18,Culture & Environment Services,Paypal,404.20,Clothing & Uniform - Purchase,Arbs equipment
07-Sep-18,Culture & Environment Services,Paypal,361.84,Clothing & Uniform - Purchase,arbs equipment
12-Sep-18,Culture & Environment Services,Paypal,320.83,Clothing & Uniform - Purchase,Breton Shirts for Uniform
25-Sep-18,Culture & Environment Services,Paypal,87.50,Clothing & Uniform - Purchase,Chain saw trousers
25-Sep-18,Culture & Environment Services,Paypal,436.66,Clothing & Uniform - Purchase,FR Jones & Sons - Arb Team Helmets & gloves
28-Sep-18,Culture & Environment Services,Paypal,54.40,Clothing & Uniform - Purchase,2 x XXL Orange Hi Vis Hoodies 
25-Sep-18,Culture & Environment Services,Paypal,6.43,Computer Consumables and other Minor IT costs,Tablet protection cover
25-Jun-18,Culture & Environment Services,Paypal,143.33,Equipment - Purchase General,PPE
03-Jul-18,Culture & Environment Services,Paypal,275.00,Equipment - Purchase General,Children's Blank wristbands for welfare
03-Jul-18,Culture & Environment Services,Paypal,146.82,Equipment - Purchase General,equipment for Arb team
20-Jul-18,Culture & Environment Services,Paypal,-35.28,Equipment - Purchase General,arb team equipment. receipt missing
23-Jul-18,Culture & Environment Services,Paypal,170.73,Equipment - Purchase General,Events PPE
15-Aug-18,Culture & Environment Services,Paypal,19.98,Equipment - Purchase General,"3 X '999 DAY' FALGS (2 for venues, 1 for Grafton)"
15-Aug-18,Culture & Environment Services,Paypal,9.99,Equipment - Purchase General,"3 X '999 DAY' FALGS (2 for venues, 1 for Grafton)"
27-Aug-18,Culture & Environment Services,Paypal,54.61,Equipment - Purchase General,arb team equipment. receipt missing.
27-Aug-18,Culture & Environment Services,Paypal,480.86,Equipment - Purchase General,arb team equipment. receipt missing.
27-Aug-18,Culture & Environment Services,Paypal,47.00,Equipment - Purchase General,equipment for arb team
21-Sep-18,Culture & Environment Services,Paypal,145.79,Equipment - Purchase General,MP3 player for TIC background music
17-Sep-18,Culture & Environment Services,Paypal,6.30,Exhibition expenses,exhibition display storage
10-Sep-18,Culture & Environment Services,Paypal,25.00,Licences,Annual registration to Purple guide
03-Jul-18,Culture & Environment Services,Paypal,53.94,Materials and Supplies - Miscellaneous,Equipment for arb team. Receipt missing.
14-Sep-18,Culture & Environment Services,Paypal,86.00,Materials and Supplies - Miscellaneous,super Barrier Tape
14-Sep-18,Culture & Environment Services,Pips Skips Ltd,190.00,Miscellaneous Stock  - Purchases,Hire of 8yd skip for 14 days - The Dell Play Area - CCP Hub
10-Sep-18,Culture & Environment Services,Pirtek Ipswich,188.38,Miscellaneous Stock  - Purchases,New oil hoses for the pecker
14-Sep-18,Culture & Environment Services,Post Office Counter,1.04,Postage Costs,Postage
19-Sep-18,Culture & Environment Services,Post Office Counter,8.60,Postage Costs,Postage
26-Sep-18,Culture & Environment Services,Post Office Counter,6.59,Postage Costs,Postage and packaging cost recorded mail ear plugs
10-Sep-18,Culture & Environment Services,Poundland Ltd 1719,9.21,Equipment - Purchase General,Refreshments for MacMillan Swimming Group
25-Sep-18,Culture & Environment Services,Rent A Party Tent,224.95,Project Costs,Remembrance Day Marquee for Reception
04-Sep-18,Culture & Environment Services,Ridgeons,46.52,Miscellaneous Stock  - Purchases,Saw Carcassing & tape measure - Crown Street - Landscape Tm
10-Sep-18,Culture & Environment Services,Ridgeons,21.23,Miscellaneous Stock  - Purchases,Planters - Crown Street - landscape Team
14-Sep-18,Culture & Environment Services,Ridgeons,26.55,Miscellaneous Stock  - Purchases,Carcassing - DALES PLAY AREA - Landscape Team
10-Sep-18,Culture & Environment Services,Ropesdirect.Co.Uk,276.96,Equipment - Purchase General,Hemp Rope 
06-Sep-18,Culture & Environment Services,Royal George (Ipswich),45.83,Materials and Supplies - Miscellaneous,colchester road job
17-Sep-18,Culture & Environment Services,Ryman,4.16,Stationery,Tags for lost property
21-Sep-18,Culture & Environment Services,Ryman,16.66,Stationery,Labels
18-Jun-18,Culture & Environment Services,Safesite Ltd,275.56,Equipment - Purchase General,"Harnesses, helmets and lines for working at heights"
05-Sep-18,Culture & Environment Services,Sainsburys S/mkt,9.63,Exhibition expenses,evening meal for late centre opening event
18-May-18,Culture & Environment Services,Sainsburys S/mkt,37.03,Goods for Resale - Catering/Beverages,Catering � Meeting
09-Jul-18,Culture & Environment Services,Sainsburys S/mkt,32.71,Goods for Resale - Catering/Beverages,Meeting Catering
19-Jul-18,Culture & Environment Services,Sainsburys S/mkt,74.91,Goods for Resale - Catering/Beverages,Catering Order - shows
02-Aug-18,Culture & Environment Services,Sainsburys S/mkt,25.75,Goods for Resale - Catering/Beverages,Lemons/Limes/Milk/ Bread etc
10-Aug-18,Culture & Environment Services,Sainsburys S/mkt,18.96,Goods for Resale - Catering/Beverages,Lemons & Limes + Milk
28-Sep-18,Culture & Environment Services,Sainsburys S/mkt,0.04,Goods for Resale - Catering/Beverages,Ipswich Pudding
28-Sep-18,Culture & Environment Services,Sainsburys S/mkt,7.77,Goods for Resale - Catering/Beverages,Ipswich Pudding
24-May-18,Culture & Environment Services,Sainsburys S/mkt,104.73,Materials and Supplies - Miscellaneous,Vols BBQ event
21-Sep-18,Culture & Environment Services,Sainsburys S/mkts,0.04,Goods for Resale - Catering/Beverages,Prawns for conference
21-Sep-18,Culture & Environment Services,Sainsburys S/mkts,9.00,Goods for Resale - Catering/Beverages,Prawns for conference
03-Sep-18,Culture & Environment Services,Sainsburys S/mkts,14.17,Materials and Supplies - Miscellaneous,Toaster for WSC - Christchurch Hub
18-Sep-18,Culture & Environment Services,Sainsburys S/mkts,1.10,Subsistence Expenses,Milk for Shop mo
14-Sep-18,Culture & Environment Services,Sandler Seating,90.00,Materials and Supplies - Miscellaneous,Back screws for corn exchange chairs
14-Aug-18,Culture & Environment Services,Screwfix Direct,22.48,Equipment - Purchase General,Hazard Lamp
28-May-18,Culture & Environment Services,Screwfix Direct Lt,25.00,Equipment - Purchase General,Additional Tools
28-May-18,Culture & Environment Services,Screwfix Direct Lt,124.98,Equipment - Purchase General,Tools and Safety Footwear (PPE)
26-Jul-18,Culture & Environment Services,Sharman Caravans,8.33,Materials and Supplies - Miscellaneous,Purchase of goal pegs for GSCC
27-Sep-18,Culture & Environment Services,Shell Ranelagh 390,16.67,Equipment - Purchase General,Petrol to take freezers to the dump
11-Sep-18,Culture & Environment Services,Shrubland Woodland Produc,33.00,Development & Maintenance of Natural Areas,Oak for bench top Dales OS
13-Sep-18,Culture & Environment Services,Signmax Ab,47.06,Equipment - Purchase General,Signs for caf� tables
21-Jun-18,Culture & Environment Services,Signs For You Ltd,451.46,Advertising/Publicity,Acrylic poster holders and spares for King Street windows
28-Sep-18,Culture & Environment Services,Signs For You Ltd,24.62,Fixtures & Fittings,sign for front entrance about carpark x1
21-Sep-18,Culture & Environment Services,Signs For You Ltd,62.60,Premises Costs - Miscellaneous,Replacement flag poles for the market
07-Sep-18,Culture & Environment Services,Sp * Breton Shirts,-86.67,Clothing & Uniform - Purchase,refund on returned uniform
24-Sep-18,Culture & Environment Services,Spaldings Limited,208.64,Materials and Supplies - Miscellaneous,"Oil, bleach and gloves for Cemetery"
07-Sep-18,Culture & Environment Services,Speedy Asset Srvcs,-95.98,Equipment - Purchase General,equipment for arbs team
06-Sep-18,Culture & Environment Services,Speedy Asset Srvcs,125.00,Materials and Supplies - Miscellaneous,arbs equipment
02-Jul-18,Culture & Environment Services,Sportsdirect 366,108.34,Clothing & Uniform - Purchase,PPE - Safety Boots
24-Sep-18,Culture & Environment Services,Sportsdirect 366,20.87,Equipment - Purchase General,Safety boots Nathaneal
13-Sep-18,Culture & Environment Services,Suffolk County Council,10.00,Holding A/C - General Use,Death Certificate - Public Health Funeral
27-Sep-18,Culture & Environment Services,Suffolk County Council,20.83,Other Fees and Professional Services,Skip Licence
24-Sep-18,Culture & Environment Services,Suffolk Fastener (Ipsw,2.08,Equipment - Purchase General,dive block bolts
13-Sep-18,Culture & Environment Services,Suffolk Fastener (Ipsw,7.83,Miscellaneous Stock  - Purchases,Bolts - Landscape Team
20-Sep-18,Culture & Environment Services,Suffolk Plant Centre,220.83,Materials and Supplies - Miscellaneous,Trees - Christchurch Hub
13-Aug-18,Culture & Environment Services,Suk Retail Ltd,13.53,Equipment - Purchase General,PDQ Till Rolls
21-Aug-18,Culture & Environment Services,Suk Retail Ltd,78.21,Equipment - Purchase General,equipment for arb team
13-Jul-18,Culture & Environment Services,Suk Retail Ltd,15.97,Materials and Supplies - Miscellaneous,equipment for arb team. Receipt missing.
06-Aug-18,Culture & Environment Services,T K Maxx,75.03,Fixtures & Fittings,Dressing Room Fixtures x 6
14-Sep-18,Culture & Environment Services,Tank Services,260.00,Equipment - Purchase General,Locker for flamable fuels in yard
19-Sep-18,Culture & Environment Services,Tarmac,23.69,Miscellaneous Stock  - Purchases,Tarmac - The Dell - Landscape Team
19-Sep-18,Culture & Environment Services,Tarmac,23.69,Miscellaneous Stock  - Purchases,Tarmac - The Dell - Landscape Team
19-Sep-18,Culture & Environment Services,Tarmac,28.43,Miscellaneous Stock  - Purchases,Tarmac - The Dell - Landscape Team
20-Sep-18,Culture & Environment Services,Tarmac,19.90,Miscellaneous Stock  - Purchases,Ballast - THE DELL - Landscape Team
20-Sep-18,Culture & Environment Services,Tarmac,21.03,Miscellaneous Stock  - Purchases,Ballast - THE DELL - Landscape Team
20-Sep-18,Culture & Environment Services,Tarmac,24.44,Miscellaneous Stock  - Purchases,Ballast - THE DELL - Landscape Team
20-Sep-18,Culture & Environment Services,Tarmac,31.38,Miscellaneous Stock  - Purchases,Ballast - THE DELL - Landscape Team
21-Sep-18,Culture & Environment Services,Tarmac,22.74,Miscellaneous Stock  - Purchases,Ballast - THE DELL - Landscape Team
21-Sep-18,Culture & Environment Services,Tarmac Ltd,28.43,Miscellaneous Stock  - Purchases,Ballast - THE DELL - Landscape Team
29-Jun-18,Culture & Environment Services,Tesco Store 2748,56.50,Goods for Resale - Catering/Beverages,Conference Catering
11-Sep-18,Culture & Environment Services,Tesco Store 2748,29.58,Goods for Resale - Catering/Beverages,Meeting Catering
14-Sep-18,Culture & Environment Services,Tesco Store 3240,5.00,Goods for Resale - Catering/Beverages,Food for conferences
14-Sep-18,Culture & Environment Services,Tesco Store 3240,48.10,Goods for Resale - Catering/Beverages,Food for conferences
19-Sep-18,Culture & Environment Services,Tesco Store 3240,65.07,Goods for Resale - Catering/Beverages,Food for conference
19-Sep-18,Culture & Environment Services,Tesco Store 3240,11.40,Goods for Resale - Catering/Beverages,Food for conference
21-Sep-18,Culture & Environment Services,Tesco Store 3240,18.48,Goods for Resale - Catering/Beverages,Food for conference and rider items
21-Sep-18,Culture & Environment Services,Tesco Store 3240,4.17,Goods for Resale - Catering/Beverages,Food for conference and rider items
21-Sep-18,Culture & Environment Services,Tesco Store 3240,113.37,Goods for Resale - Catering/Beverages,Food for conference and rider items
18-Jun-18,Culture & Environment Services,Tesco Stores 5603,25.60,Goods for Resale - Catering/Beverages,Lemons/Limes/Bread/Milk - Catering
17-Aug-18,Culture & Environment Services,The Book People,11.85,Equipment - Purchase General,refurbishment works equipment
15-Aug-18,Culture & Environment Services,The Ipswich Cobble,16.67,Equipment - Purchase General,Keys cut
26-Sep-18,Culture & Environment Services,The Post Office,6.53,Postage Costs,Plaque & Solicitor Documents - Recorded
02-Jul-18,Culture & Environment Services,The Range,35.99,Equipment - Purchase General,Misc Tools - Events
03-Sep-18,Culture & Environment Services,The Range,7.50,Equipment - Purchase General,crates x2 for junior athletics club etc
27-Sep-18,Culture & Environment Services,The Range,16.67,Materials and Supplies - Miscellaneous,Multi purpose compost - Christchurch Hub
07-Sep-18,Culture & Environment Services,The Range,27.06,Miscellaneous Stock  - Purchases,Bypas Secateur - Landscape Team
06-Sep-18,Culture & Environment Services,The Windscreen Co,365.00,General Transport Running Expenses,Windscreen repair AV13 OPL
18-Sep-18,Culture & Environment Services,The Windscreen Co,405.00,General Transport Running Expenses,1/4 glass replacement F6134
26-Sep-18,Culture & Environment Services,The Windscreen Co,60.00,General Transport Running Expenses,chip repair to AY64 LRZ
26-Sep-18,Culture & Environment Services,The Windscreen Co,288.00,General Transport Running Expenses,Windscreen repair to LJ15 XFU F6150
26-Sep-18,Culture & Environment Services,The Windscreen Co,834.00,General Transport Running Expenses,windscreen replacement F6138
20-Sep-18,Culture & Environment Services,The Windscreen Co,135.00,Parks Vehicle Costs,Window smashed by stone
20-Sep-18,Culture & Environment Services,The Windscreen Co,165.00,Parks Vehicle Costs,Windscreen needed for MOT
27-Sep-18,Culture & Environment Services,The Windscreen Co,125.00,Parks Vehicle Costs,Stone hit passenger window
24-Sep-18,Culture & Environment Services,Thurlow Nunn Standen L,82.08,Equipment - Purchase General,Brush Cutter blades and guard
18-Jun-18,Culture & Environment Services,Timpson,17.83,Equipment - Purchase General,Lift lock off keys
15-Aug-18,Culture & Environment Services,Timpson,16.25,Materials and Supplies - Miscellaneous,Keys for Chantry
06-Sep-18,Culture & Environment Services,Timpson,18.00,Materials and Supplies - Miscellaneous,keys
05-Sep-18,Culture & Environment Services,Timpson Ltd,10.00,Equipment - Purchase General,key cuts for cleaners cupboard etc x2 for northgate
25-Sep-18,Culture & Environment Services,Tolleshunt Turf,510.00,Materials and Supplies - Miscellaneous,Charger plug and lead
14-Sep-18,Culture & Environment Services,Toolstation Ltd,7.61,Equipment - Purchase General,Floor Scraper
14-Sep-18,Culture & Environment Services,Toolstation Ltd,30.43,Equipment - Purchase General,Heavy duty scrapers
03-Sep-18,Culture & Environment Services,Total Football Ipswich,22.50,Equipment - Purchase General,Purchase of line marking
25-Sep-18,Culture & Environment Services,Tp Ipswich,44.12,Miscellaneous Stock  - Purchases,Materials for Poppy display at CCP
20-Sep-18,Culture & Environment Services,Trainline,37.80,Materials and Supplies - Miscellaneous,Peter Ling - Train to Leeds
28-May-18,Culture & Environment Services,Trainline,79.50,Training Expenses,Train Travel � Leading Learning
06-Jul-18,Culture & Environment Services,Trainline,79.50,Training Expenses,Train Travel - Leading Learning
18-Sep-18,Culture & Environment Services,Trainline,80.85,Training Expenses,Train Travel - Leading Learning
20-Sep-18,Culture & Environment Services,Travelodge Gb0000,45.00,Materials and Supplies - Miscellaneous,Leeds Accommodation
03-Sep-18,Culture & Environment Services,Tu At Sainsburys,55.83,Clothing & Uniform - Purchase,4 X Uniform Trousers
04-Sep-18,Culture & Environment Services,Turner Tool Hire,597.50,Equipment Hire,26m MEWP
04-Sep-18,Culture & Environment Services,Turner Tool Hire,412.90,Equipment Hire,Tracked platform
18-Sep-18,Culture & Environment Services,Turner Tool Hire,"1,287.00",Equipment Hire,Tracked Platform for Tree work
18-Sep-18,Culture & Environment Services,Tvlicensing.Co.Uk,150.50,Licences,TV Licence
30-Jul-18,Culture & Environment Services,W J Green Limited,114.24,Equipment - Purchase General,arb team equipment. receipt missing
05-Sep-18,Culture & Environment Services,W J Green Limited,19.82,Equipment - Purchase General,arbs equipment
30-Jul-18,Culture & Environment Services,Wagamama Ipswich,23.67,Other Minor Expenses,Promoter Meeting Lunch
19-Sep-18,Culture & Environment Services,Waitrose Ltd,2.63,Cleaning Supplies,Bin bags for Shop Mo
14-Jun-18,Culture & Environment Services,Waitrose Ltd,8.56,Goods for Resale - Catering/Beverages,Lemons & Limes
07-Sep-18,Culture & Environment Services,Waitrose Ltd,3.50,Goods for Resale - Catering/Beverages,Lemons
14-Sep-18,Culture & Environment Services,Waitrose Ltd,0.44,Goods for Resale - Catering/Beverages,Carrots
19-Sep-18,Culture & Environment Services,Waitrose Ltd,18.69,Goods for Resale - Catering/Beverages,Meeting Catering
21-Sep-18,Culture & Environment Services,Waitrose Ltd,2.00,Goods for Resale - Catering/Beverages,butter
21-Sep-18,Culture & Environment Services,Waitrose Ltd,2.75,Goods for Resale - Catering/Beverages,Cream Cheese
21-Sep-18,Culture & Environment Services,Waitrose Ltd,3.39,Goods for Resale - Catering/Beverages,food for conference
21-Sep-18,Culture & Environment Services,Waitrose Ltd,6.57,Goods for Resale - Catering/Beverages,Food for dietary requirements
28-Sep-18,Culture & Environment Services,Waitrose Ltd,1.49,Goods for Resale - Catering/Beverages,Items for Xmas pARTIES
04-Sep-18,Culture & Environment Services,Waitrose Ltd,1.13,Subsistence Expenses,Milk for Shop mo
25-Sep-18,Culture & Environment Services,Waitrose Ltd,0.89,Subsistence Expenses,Milk for Shop mo
21-Sep-18,Culture & Environment Services,Wh Smith,37.48,Materials and Supplies - Miscellaneous,Photo Albums for news clipping in Ed Rm - Christchurch Hub
25-Sep-18,Culture & Environment Services,Wickes Ipswich,36.64,Equipment - Purchase General,materials to refurbish a donation bench
06-Sep-18,Culture & Environment Services,Wickes Ipswich,17.98,Materials and Supplies - Miscellaneous,hippo bags for void team
07-Sep-18,Culture & Environment Services,Wickes Ipswich,12.48,Materials and Supplies - Miscellaneous,drill bits for colins goals
04-Sep-18,Culture & Environment Services,Wickes Ipswich,3.08,Miscellaneous Stock  - Purchases,Building sand bag - CCP Play Area - Landscape Team
05-Sep-18,Culture & Environment Services,Wickes Ipswich,22.39,Miscellaneous Stock  - Purchases,Chisel & brick bolster - Crown Street - Landscape Team
07-Sep-18,Culture & Environment Services,Wickes Ipswich,15.68,Miscellaneous Stock  - Purchases,Cuprinol silver birch - Crown Street - Landscape Team
10-Sep-18,Culture & Environment Services,Wickes Ipswich,7.83,Miscellaneous Stock  - Purchases,Set concrete repair - Crown Street - Landscape Team
11-Sep-18,Culture & Environment Services,Wickes Ipswich,6.17,Miscellaneous Stock  - Purchases,Repairs to cobbolds - Mansion Lawn - Landscape Team
20-Sep-18,Culture & Environment Services,Wickes Ipswich,14.16,Miscellaneous Stock  - Purchases,Wood stain & brush - MURRAY RD BENCH - Landscape Team
12-Sep-18,Culture & Environment Services,Wilko Retail Limit,7.00,Cleaning Supplies,Cleaning products + cat litter
24-Sep-18,Culture & Environment Services,Wilko Retail Limit,20.25,Equipment - Purchase General,Events Equipment purchase
11-Sep-18,Culture & Environment Services,Wilko Retail Limit,9.54,Materials and Supplies - Miscellaneous,Plungers to clear toilets.
26-Sep-18,Culture & Environment Services,Wilko Retail Limit,3.96,Materials and Supplies - Miscellaneous,Washing up liquid & descaler - Christchurch Hub
10-Sep-18,Culture & Environment Services,Wilko Retail Limit,10.42,Miscellaneous Stock  - Purchases,Wood stain & Brushes - CROWN STREET - Landscape Team
04-Jul-18,Culture & Environment Services,Wilko Retail Limit,3.33,Stationery,"GLUE, SPREADERS, TRAYS"
27-Sep-18,Culture & Environment Services,Wm Morrisons Store,1.40,Goods for Resale - Catering/Beverages,Lemons ect
27-Sep-18,Culture & Environment Services,Wm Morrisons Store,20.66,Goods for Resale - Catering/Beverages,Lemons ect
20-Jun-18,Culture & Environment Services,Woodside Conferenc,121.75,Training Expenses,Hotel/Conference - Leading Learning
22-Jun-18,Culture & Environment Services,Www.Argos.Co.Uk,61.61,Equipment - Purchase General,2 x fans for meeting rooms
04-Sep-18,Culture & Environment Services,Www.Ascotwholesale.Co.,77.00,Goods for Resale - Catering/Beverages,Optics etc
28-Sep-18,Culture & Environment Services,Www.Barriersdirect.Co.,246.60,Equipment - Purchase General,Tensabarriers for poolside
03-Sep-18,Culture & Environment Services,Www.British-Gymnastics,193.69,Goods for Resale - Equipment,Gymnastic & Trampoline Certificates & Badges
14-Sep-18,Culture & Environment Services,Www.Firstfence.Co.Uk,699.27,Development & Maintenance of Natural Areas,safety fencing
14-Sep-18,Culture & Environment Services,Www.Firstfence.Co.Uk,833.33,Development & Maintenance of Natural Areas,safety fencing
14-Sep-18,Culture & Environment Services,Www.Firstfence.Co.Uk,833.33,Development & Maintenance of Natural Areas,safety fencing
14-Sep-18,Culture & Environment Services,Www.Firstfence.Co.Uk,833.33,Development & Maintenance of Natural Areas,safety fencing
14-Sep-18,Culture & Environment Services,Www.Firstfence.Co.Uk,833.33,Development & Maintenance of Natural Areas,safety fencing
11-Sep-18,Culture & Environment Services,Www.Gsproducts.Co.Uk,23.23,Equipment - Purchase General,stainless steel poolside rope eyelets
10-Sep-18,Culture & Environment Services,Www.Lifesaversdirect,236.63,Training Expenses,Aquaboard replacement strap pack
18-Sep-18,Culture & Environment Services,Www.Lifesaversdirect,41.67,Training/Courses Running Costs,Training Resources - First Aid Course
21-Sep-18,Culture & Environment Services,Www.Nisbets.Com,62.07,Equipment - Purchase General,New bins for kitchen
13-Sep-18,Culture & Environment Services,Www.Partypacks.Co.Uk,87.50,Materials and Supplies - Miscellaneous,Disposable Table Clothes
25-Sep-18,Culture & Environment Services,Www.Poppylottery.Safea,"1,006.67",Miscellaneous Stock  - Purchases,Poppy wreaths for display at CCP
12-Sep-18,Culture & Environment Services,Www.Protecdirect.Co.Uk,102.98,Equipment - Purchase General,safety boots and gloves for volunteers
06-Sep-18,Culture & Environment Services,Www.Safetyfirstaid.Co.,133.70,Equipment - Purchase General,First Aid Supplies for Fore Street & Waterfront gym
17-Aug-18,Culture & Environment Services,Www.Smythstoys.Com,33.32,Equipment - Purchase General,refurbishment works costs
17-Sep-18,Culture & Environment Services,Www.Stadia-Sports.Co.U,697.00,Equipment - Purchase General,boot scrapers for cemetery grounds
12-Sep-18,Culture & Environment Services,Www.The-Party-Place.Co,150.79,Materials and Supplies - Miscellaneous,Disposable Table Clothes
07-Sep-18,Culture & Environment Services,Www.Theworks.Co.Uk,35.00,Premises Costs - Miscellaneous,Raffle tickets for Ipswich Market
11-Sep-18,Culture & Environment Services,Www.Toolstation.Com,26.60,Equipment - Purchase General,Safety work gloves for staff
21-Sep-18,Culture & Environment Services,Zoggs International Ltd,36.00,Equipment - Purchase General,noodles for swim courses
28-Sep-18,Culture & Environment Services,Zoggs International Ltd,59.20,Equipment - Purchase General,noodles for swim aqua fit
17-Sep-18,Development,Banner Group Ltd,68.50,Stationery,Drawing pins/Cellotape for Enforcement
27-Sep-18,Development,Banner Group Ltd,13.73,Stationery,Brass drawing pins for Site Notices (Planning)
27-Sep-18,Development,Banner Group Ltd,9.22,Stationery,Heavy-duty scotch tape for Site Notices (Planning)
28-Sep-18,Development,Banner Group Ltd,21.44,Stationery,flip charts
17-Sep-18,Development,Chartered Association,255.00,Employee Expenses,2018/19 subs for C.A.B.E
20-Aug-18,Development,Construction Diari,125.00,Employee Expenses,APC professional diary fees 
10-Sep-18,Development,Currys T/sales,49.17,Equipment - Purchase General,Microwave replacement for the IP City Centre-
10-Sep-18,Development,Fast Key Services Limi,6.05,Fixtures & Fittings,new H7S so needed new keys
12-Sep-18,Development,Geodesys,250.00,Other Fees and Professional Services,Utilities search re-development project
12-Sep-18,Development,Geodesys,250.00,Other Fees and Professional Services,Utilities search re-development project
12-Sep-18,Development,Geodesys,250.00,Other Fees and Professional Services,Utilities search re-development project
12-Sep-18,Development,Geodesys,250.00,Other Fees and Professional Services,Utilities search re-development project
12-Sep-18,Development,Geodesys,250.00,Other Fees and Professional Services,Utilities search re-development project
12-Sep-18,Development,Geodesys,250.00,Other Fees and Professional Services,Utilities search re-development project
20-Sep-18,Development,Greater Anglia Trains,158.80,Training Expenses,Ipswich - London GW and MH High Rise Safety Meeting
26-Sep-18,Development,Horizon Environment Sr,49.75,Premises Costs - Miscellaneous,pest control
19-Sep-18,Development,Tesco Stores 2877,10.80,Subsistence Expenses,milk
20-Sep-18,Development,The Knowledge Academy,"1,390.00",Training/Courses Running Costs,3 day Prince2 Foundation course 
06-Sep-18,Development,Trainline,6.99,Employee Expenses,Train ticket MH (work-related)
14-Sep-18,Development,Trainline,43.30,Use Of Public Transport,"Train ticket, Ipswich - London, for meeting"
18-Sep-18,Development,Www.Latitudemaps.Co.Uk,16.50,Publications - Purchase,Latitude maps
15-Aug-18,Development,Www.Mailcoms.Co.Uk,265.95,Postage Costs,annual service subs
26-Sep-18,Development,Www.Sackers .Co.Uk,357.00,Removal/Emptying of Waste,bins
14-Sep-18,Finance & Revenues,123-Reg.Co.Uk,9.99,Computer Equipment - Purchase,gateway domain name for Ipserv
14-Sep-18,Finance & Revenues,123-Reg.Co.Uk,-9.99,Computer Equipment - Purchase,gateway domain name for Ipserv
14-Sep-18,Finance & Revenues,123-Reg.Co.Uk,9.99,Computer Equipment - Purchase,gateway domain name for Ipserv
28-Sep-18,Finance & Revenues,Amzn Mktp Uk,18.29,Stationery,IMAK Smartglove with thumb support (small) 
10-Sep-18,Finance & Revenues,Amzn Mktp Uk,7.90,Telecommunication Costs - Mobiles,Protective cases for Smartphones
10-Sep-18,Finance & Revenues,Amzn Mktp Uk,3.95,Telecommunication Costs - Mobiles,Protective cases for Smartphones
10-Sep-18,Finance & Revenues,Amzn Mktp Uk,3.95,Telecommunication Costs - Mobiles,Protective cases for Smartphones
10-Sep-18,Finance & Revenues,Amzn Mktp Uk,21.63,Telecommunication Costs - Mobiles,Protective cases for Smartphones
10-Sep-18,Finance & Revenues,Amzn Mktp Uk,3.08,Telecommunication Costs - Mobiles,Protective cases for Smartphones
10-Sep-18,Finance & Revenues,Amzn Mktp Uk,9.27,Telecommunication Costs - Mobiles,Protective cases for Smartphones
20-Sep-18,Finance & Revenues,Amzn Mktp Uk,7.49,Telecommunication Costs - Mobiles,Protective cases for Smartphones
20-Sep-18,Finance & Revenues,Amzn Mktp Uk,7.49,Telecommunication Costs - Mobiles,Protective cases for Smartphones
25-Sep-18,Finance & Revenues,Cbt Nuggets,66.25,Training Expenses,ICT Training
03-Sep-18,Finance & Revenues,Google,0.05,Computer Software - Purchase,API usage
18-Sep-18,Finance & Revenues,Greater Anglia Trains,50.50,Training Expenses,Training travel for GIS
12-Sep-18,Finance & Revenues,Hmcts-Suffolk024,735.00,Legal Services & Fees,Council Tax Committal summons court fee
19-Sep-18,Finance & Revenues,Hmcts-Suffolk024,980.00,Legal Services & Fees,CTAX committal summons
04-Sep-18,Finance & Revenues,Paypal,379.39,Computer Equipment - Purchase,SFTP hosting upgrade
10-Sep-18,Finance & Revenues,Paypal,8.23,Computer Equipment - Purchase,laptop locks for CSC
11-Sep-18,Finance & Revenues,Service Fees - Fraedom Pty Ltd,383.15,Computer Software - Maintenance,Fraedom Card Usage Fees 1/8/18-31/8/18
06-Sep-18,Finance & Revenues,Trainline,48.00,Use Of Public Transport,Ipswich to Liverpool Street return ticket 26/9/18
17-Sep-18,Finance & Revenues,Trainline,188.10,Use Of Public Transport,Ipswich to Birmingham return 24/9/18
20-Sep-18,Finance & Revenues,Trainline,80.85,Use Of Public Transport,Rail Tickets 
26-Sep-18,Finance & Revenues,Trainline,98.50,Use Of Public Transport,2 return tickets from Ipswich to London 3 &10/10/18
25-Sep-18,Finance & Revenues,Valleyhotel.Co.Uk,184.17,Subsistence Expenses,Accommodation
25-Sep-18,Finance & Revenues,Valleyhotel.Co.Uk,184.17,Subsistence Expenses,accommodation
25-Sep-18,Finance & Revenues,Valleyhotel.Co.Uk,184.17,Subsistence Expenses,Accommodation
05-Sep-18,Finance & Revenues,Www.Aat-Org.Uk,151.00,Employee Expenses,AAT Membership 
28-Sep-18,Housing & Community Services,Ac Leigh (Norwich) Ltd,58.08,Premises Costs - Miscellaneous,Lock for Office
26-Feb-18,Housing & Community Services,Amazon Digital Dwnld Amaz,7.99,General Transport Running Expenses,miscellaneous
14-Sep-18,Housing & Community Services,Amazon Prime,6.66,Equipment - Purchase General,Amazon Prime
13-Sep-18,Housing & Community Services,Amazon.Co.Uk,15.83,Equipment - Purchase General,Lap top bag
13-Sep-18,Housing & Community Services,Amazon.Co.Uk,15.83,Equipment - Purchase General,Lap top bag
13-Sep-18,Housing & Community Services,Amazon.Co.Uk,15.83,Equipment - Purchase General,Lap top bag
13-Sep-18,Housing & Community Services,Amazon.Co.Uk,15.83,Equipment - Purchase General,Lap top bag
18-Sep-18,Housing & Community Services,Amazon.Co.Uk,61.67,Equipment - Purchase General,Camera 
18-Sep-18,Housing & Community Services,Amazon.Co.Uk,54.95,Equipment - Purchase General,Extension Leads
05-Sep-18,Housing & Community Services,Amzn Mktp Uk,17.48,Equipment - Purchase General,Screen protectors
06-Sep-18,Housing & Community Services,Amzn Mktp Uk,14.92,Equipment - Purchase General,Screen protectors
06-Sep-18,Housing & Community Services,Amzn Mktp Uk,28.25,Equipment - Purchase General,Tablet Cases
18-Sep-18,Housing & Community Services,Amzn Mktp Uk,56.66,Equipment - Purchase General,Floor Lead Tidy
24-Sep-18,Housing & Community Services,Amzn Mktp Uk,21.99,Equipment - Purchase General,Keyboard & Mouse Set
24-Sep-18,Housing & Community Services,Amzn Mktp Uk,23.99,Equipment - Purchase General,Wireless Keyboard & Mouse Set
27-Sep-18,Housing & Community Services,Amzn Mktp Uk,23.25,Materials and Supplies - Miscellaneous,Bunting - New CSC decorations
07-Sep-18,Housing & Community Services,Amzn Mktp Uk,1.33,Stationery,Cardboard tags for void keys
24-Sep-18,Housing & Community Services,Amzn Mktp Uk,480.00,Training Expenses,18th Edition Regs Books for Electricians
25-Sep-18,Housing & Community Services,Amzn Mktp UK Amazon.Co.Uk,17.48,Equipment - Purchase General,Needed new desk fan 
17-Sep-18,Housing & Community Services,Banner Group Ltd,168.56,Stationery,A4 Clip frames x 8
18-Sep-18,Housing & Community Services,Banner Group Ltd,59.39,Stationery,Stationery
27-Sep-18,Housing & Community Services,Bunzl,85.57,Cleaning Supplies,"floor cleaner, toilet tissue, blue roll, black sacks"
14-Sep-18,Housing & Community Services,C I H,60.00,Training Expenses,CIH training 
13-Sep-18,Housing & Community Services,Cpw Locksmiths And Securi,95.00,HRA Special Repairs & Maintenance,swap replace cylinder lock flat 21
13-Sep-18,Housing & Community Services,Cpw Locksmiths And Securi,115.00,HRA Special Repairs & Maintenance,Wingate Hse
18-Sep-18,Housing & Community Services,Cpw Locksmiths And Securi,75.00,HRA Special Repairs & Maintenance,Cumberland T change barrell flat 43
12-Sep-18,Housing & Community Services,Digital Id,19.94,Materials and Supplies - Miscellaneous,Red plastic cards for Voids
07-Sep-18,Housing & Community Services,Duelsecurity,11.62,Materials and Supplies - Miscellaneous,3233137 Meter box catch
20-Sep-18,Housing & Community Services,Easykeysandlockers,7.40,Materials and Supplies - Miscellaneous,Locker Keys for Hazardous Waste Store
03-Sep-18,Housing & Community Services,Eb *arch Tenants Confe,100.00,Housing  - other Costs,Tenant Conference- extra attendee cost
22-Aug-18,Housing & Community Services,Eoe Co-Op,10.00,Materials and Supplies - Miscellaneous,Electricity
04-Sep-18,Housing & Community Services,Eoe Co-Op,40.00,Materials and Supplies - Miscellaneous,Electricity
04-Sep-18,Housing & Community Services,Eoe Co-Op,30.00,Materials and Supplies - Miscellaneous,Electricity
27-Sep-18,Housing & Community Services,Eoe Co-Op,22.40,Project Costs,Supplies from Coop for rough sleeper overnight count - BG
27-Sep-18,Housing & Community Services,Greater Anglia T/o,85.40,Project Costs,Ministry visit train fare cost 
27-Sep-18,Housing & Community Services,Greater Anglia T/o,65.00,Training Expenses,Rail tickets for training in London 
19-Sep-18,Housing & Community Services,Greater Anglia T/o,18.20,Use Of Public Transport,Train tickets 
11-Sep-18,Housing & Community Services,Hmcts-Suffolk024,20.00,Legal Services & Fees,Gas warrant
20-Sep-18,Housing & Community Services,Hmcts-Suffolk024,20.00,Legal Services & Fees,gas warrant
10-Sep-18,Housing & Community Services,J2 Efax Plus Service,11.00,Other Minor Expenses,Monthly fee for secure fax system
25-Jan-18,Housing & Community Services,Kindle Unlimited,7.99,General Transport Running Expenses,miscellaneous
20-Aug-18,Housing & Community Services,Land Registry,3.00,Legal Services & Fees,LAND REGISTRY ID 8162910955
20-Aug-18,Housing & Community Services,Land Registry,3.00,Legal Services & Fees,LAND REGISTRY ID 8162913266
20-Aug-18,Housing & Community Services,Land Registry,3.00,Legal Services & Fees,LAND REGISTRY ID 8162914237
20-Aug-18,Housing & Community Services,Land Registry,3.00,Legal Services & Fees,LAND REGISTRY ID 8162915642
20-Aug-18,Housing & Community Services,Land Registry,3.00,Legal Services & Fees,LAND REGISTRY TRANSACTION ID 8162906697
20-Aug-18,Housing & Community Services,Land Registry,3.00,Legal Services & Fees,LAND REGISTRY TRANSACTION ID 8162910110
18-Sep-18,Housing & Community Services,Lidl UK Stowmarket,4.12,Housing  - other Costs,Tenants' Conference refreshments
17-Sep-18,Housing & Community Services,Love2shop.Co.Uk,50.00,Housing  - other Costs,Vouchers for winners of gardening competition
12-Sep-18,Housing & Community Services,Mpd - Ipswich 03,104.74,Equipment - Purchase General,2 x PAGM20-12 -12V 20Ah Batteries for P&D machines.
05-Sep-18,Housing & Community Services,Paypal,57.50,Equipment - Purchase General,Camera for ID cards
11-Sep-18,Housing & Community Services,Possessionclaim.Go,325.00,Legal Services & Fees,Posession claim on line
11-Sep-18,Housing & Community Services,Possessionclaim.Go,325.00,Legal Services & Fees,possession claim on line
11-Sep-18,Housing & Community Services,Possessionclaim.Go,325.00,Legal Services & Fees,possession claim on line
11-Sep-18,Housing & Community Services,Possessionclaim.Go,325.00,Legal Services & Fees,Possession claim on line
11-Sep-18,Housing & Community Services,Possessionclaim.Go,325.00,Legal Services & Fees,Possession claim on line
11-Sep-18,Housing & Community Services,Possessionclaim.Go,325.00,Legal Services & Fees,Possession claim on line
11-Sep-18,Housing & Community Services,Possessionclaim.Go,325.00,Legal Services & Fees,possession claim on line
11-Sep-18,Housing & Community Services,Possessionclaim.Go,325.00,Legal Services & Fees,possession claim on line
18-Sep-18,Housing & Community Services,Possessionclaim.Go,121.00,Legal Services & Fees,warrant costs
20-Sep-18,Housing & Community Services,Possessionclaim.Go,325.00,Legal Services & Fees,possession claim on line
20-Sep-18,Housing & Community Services,Possessionclaim.Go,325.00,Legal Services & Fees,possession claim on line
20-Sep-18,Housing & Community Services,Possessionclaim.Go,121.00,Legal Services & Fees,warrant costs
12-Sep-18,Housing & Community Services,Post Office Counter,440.00,Licences,SIA LICENCE 
03-Sep-18,Housing & Community Services,Royal Mail Charges,10.50,Equipment - Purchase General,Royal Mail Customs Charge
27-Sep-18,Housing & Community Services,Sainsburys S/mkt,3.85,Housing  - other Costs,Get Together refreshments
23-Aug-18,Housing & Community Services,Security Industry,220.00,Licences,SIA Licence 
17-Sep-18,Housing & Community Services,Seton,100.34,Materials and Supplies - Miscellaneous,Health and Safety signage for Gipping House operational dept
18-Sep-18,Housing & Community Services,Seton,45.12,Materials and Supplies - Miscellaneous,H&S signage for Gipping House operational dept.
24-Sep-18,Housing & Community Services,Seton,130.22,Materials and Supplies - Miscellaneous,Health & Safety signage for Gipping House operational depot.
25-Sep-18,Housing & Community Services,Seton,369.58,Materials and Supplies - Miscellaneous,H&S Signage required for Gipping Hse prior to HSE inspection
19-Sep-18,Housing & Community Services,Shell Ranelagh 390,18.87,General Transport Running Expenses,Fuel for Hire Shop Tools
13-Sep-18,Housing & Community Services,Suk Retail Ltd,12.49,Equipment - Purchase General,1 pack of 100 lamination folders for Suspension signage.
03-Sep-18,Housing & Community Services,Suk Retail Ltd,24.97,Stationery,communications books x 4 for team
24-Sep-18,Housing & Community Services,Tesco Store 2748,9.60,Materials and Supplies - Miscellaneous,Crockery/Cutlery for MA2 Kitchen
24-Aug-18,Housing & Community Services,The Post Office,220.00,Licences,SIA LICENCE 
24-Aug-18,Housing & Community Services,The Post Office,220.00,Licences,SIA LICENCE 
03-Sep-18,Housing & Community Services,The Post Office,440.00,Licences,SIA LICENCE
19-Sep-18,Housing & Community Services,The Post Office,220.00,Licences,SIA LICENCE
20-Sep-18,Housing & Community Services,The Range,49.94,Stationery,"Coat stands X 2, Compost for re-planting"
13-Sep-18,Housing & Community Services,Trainline,175.43,Training Expenses,Northgate User Group travel - to be refunded by UG
13-Sep-18,Housing & Community Services,Trainline,88.00,Training Expenses,Travel for training in London
17-Sep-18,Housing & Community Services,Value Products Ltd,22.25,Materials and Supplies - Miscellaneous,Health and Safety signage for Gipping House operational dept
21-Sep-18,Housing & Community Services,Wilko Retail Limit,12.55,Stationery,Cutlery / Items for break-out area
21-Sep-18,Housing & Community Services,Www.Ikea.Com,80.35,Stationery,Items for break out area / CSC Town Hall re-design
17-Sep-18,Housing & Community Services,Www.Insidehousing.Co.U,145.00,Employee Expenses,subscription
07-Sep-18,Housing & Community Services,Www.Iosh.Co.Uk,156.67,Employee Expenses,IOSH Membership Subscription
26-Sep-18,Housing & Community Services,Www.Toolstation.Com,7.63,Equipment - Purchase General,Magnetic Wand Mirror for window/door repairs
10-Sep-18,Housing & Community Services,Www.Toolstation.Com,22.77,Materials and Supplies - Miscellaneous,JRT 3237656 
20-Sep-18,People & Governance,Amzn Mktp Uk,32.95,Election Expenses,Equipment for Annual Canvass
21-Sep-18,People & Governance,Amzn Mktp Uk,5.83,Equipment - Purchase General,Equipment for building visits
18-Sep-18,People & Governance,Buydirect-Primesight,484.00,Advertising/Publicity,Fame Outdoor 48 sheet bilboard
07-Sep-18,People & Governance,Carats Co Ltd,438.33,Project Costs,Retirement Gift
14-Sep-18,People & Governance,Companies House,13.00,Subsistence Expenses,Annual Accounts
14-Sep-18,People & Governance,Companies House,13.00,Subsistence Expenses,Annual Accounts
14-Sep-18,People & Governance,Companies House,13.00,Subsistence Expenses,Annual Accounts
14-Sep-18,People & Governance,Companies House,13.00,Subsistence Expenses,Annual accounts
11-Sep-18,People & Governance,E/tunnel Internet,160.75,Project Costs,Mayoral visit to Arras France 11-13 October 2018
17-Sep-18,People & Governance,Facebk Jm6n8hn7j2,12.50,Advertising/Publicity,Advertising
17-Sep-18,People & Governance,Facebk Jm6n8hn7j2,454.17,Advertising/Publicity,Advertising
17-Sep-18,People & Governance,Facebk Jm6n8hn7j2,16.66,Exhibition expenses,Advertising
25-Sep-18,People & Governance,Facebk T4wslhs7j2,15.00,Advertising/Publicity,Advertising
25-Sep-18,People & Governance,Facebk T4wslhs7j2,513.32,Advertising/Publicity,Advertising
25-Sep-18,People & Governance,Facebk T4wslhs7j2,51.68,Exhibition expenses,Advertising
07-Sep-18,People & Governance,Facebk Vr9mbhj8j2,23.40,Advertising/Publicity,Advertising
07-Sep-18,People & Governance,Facebk Vr9mbhj8j2,8.33,Advertising/Publicity,Advertising
07-Sep-18,People & Governance,Facebk Vr9mbhj8j2,313.98,Advertising/Publicity,Advertising
26-Sep-18,People & Governance,Greater Anglia Trains,126.10,Use Of Public Transport,Train fare to IDEA user group in London
27-Sep-18,People & Governance,Greater Anglia Trains,99.90,Use Of Public Transport,Train fare to Tenancy Fraud Forum Conference
13-Sep-18,People & Governance,Mailchimp,339.99,Subscriptions - Service Related,Mailchimp Subscription
27-Sep-18,People & Governance,Mailchimp,211.62,Subscriptions - Service Related,MailChimp Subscription
07-Sep-18,People & Governance,Marks&spencer Plc,36.04,Miscellaneous Functions & Events,cake/sanwhiches for film trust afternoon tea
12-Sep-18,People & Governance,Marks&spencer Plc,3.14,Miscellaneous Functions & Events,cake for Family first group
27-Sep-18,People & Governance,Marks&spencer Plc,36.59,Miscellaneous Functions & Events,event cakes/sandwiches
06-Sep-18,People & Governance,Old Rep,236.36,Mayoral Related Expenditure,Charity Walk & Supper costs 4sept2018
25-Sep-18,People & Governance,Sainsburys S/mkts,8.33,Miscellaneous Functions & Events,"tea ,coffee and biscuits for long service awards"
04-Sep-18,People & Governance,Spectrum Computers Ltd,64.90,Computer Consumables and other Minor IT costs,"Regent,Councillors,Sheltered Housing inks"
04-Sep-18,People & Governance,Spectrum Computers Ltd,74.16,Computer Consumables and other Minor IT costs,"Regent,Councillors,Sheltered Housing inks"
04-Sep-18,People & Governance,Spectrum Computers Ltd,50.50,Computer Consumables and other Minor IT costs,"Regent,Councillors,Sheltered Housing inks"
11-Sep-18,People & Governance,Spectrum Computers Ltd,153.14,Computer Consumables and other Minor IT costs,"HP, Epson,Canon inks for Councillors "
19-Sep-18,People & Governance,Spectrum Computers Ltd,22.48,Computer Consumables and other Minor IT costs,Cllr CanonPG 545 ink
19-Sep-18,People & Governance,Spectrum Computers Ltd,89.70,Computer Consumables and other Minor IT costs,Inks for sheltered housing
19-Sep-18,People & Governance,Spectrum Computers Ltd,89.70,Computer Consumables and other Minor IT costs,Inks for sheltered housing
21-Sep-18,People & Governance,Spectrum Computers Ltd,29.90,Computer Consumables and other Minor IT costs,Canon PG540/CL541 ink Cllr 
24-Sep-18,People & Governance,Spectrum Computers Ltd,154.29,Computer Consumables and other Minor IT costs,CLi526 PGi 525 multi packs
10-Sep-18,People & Governance,Spring Road,39.78,General Transport Running Expenses,fuel
17-Sep-18,People & Governance,"Sprout Social, Inc",709.72,Subscriptions - Service Related,Social Media Management
05-Sep-18,People & Governance,Suk Retail Ltd,25.86,Stationery,2019 Diaries
12-Sep-18,People & Governance,Surveymonkey,192.00,Subscriptions - Service Related,Survey Monkey Annual Subscription Divided with Comms and P&P
12-Sep-18,People & Governance,Surveymonkey,192.00,Subscriptions - Service Related,Survey Monkey Annual Subscription Divided with Comms and P&P
07-Sep-18,People & Governance,Waitrose Ltd,1.04,Miscellaneous Functions & Events,milk for parlourvevent
26-Sep-18,People & Governance,Waitrose Ltd,0.89,Miscellaneous Functions & Events,milk for mayoral event
28-Sep-18,People & Governance,Waitrose Ltd,2.99,Miscellaneous Functions & Events,Care Leavers in the Grandmentors project cake
28-Sep-18,People & Governance,Waitrose Ltd,4.34,Miscellaneous Functions & Events,Care Leavers in the Grandmentors project event cake/milk
19-Sep-18,People & Governance,Www.Osbornebooks.Co.Uk,71.65,Training Expenses,AAT study books
10-Sep-18,People & Governance,Www.Paper.Co.Uk,107.11,Miscellaneous Stock  - Purchases,Required Paper Supply
24-Sep-18,People & Governance,Www.Paper.Co.Uk,163.23,Miscellaneous Stock  - Purchases,Paper for print room
28-Sep-18,People & Governance,Www.Paper.Co.Uk,136.38,Miscellaneous Stock  - Purchases,Required Paper Supply
11-Sep-18,People & Governance,Www.Stannp.Com,508.26,Advertising/Publicity,Let's Hang On Mailing - show code 1422
